bitfinex/quotes_ETHUSD_20241004
["timestamp","ask_amount","ask_price","bid_price","bid_amount"]
[1728044054078,10.96469344,2387.1,2386.7,4.1898]
[1728044054371,6.77543344,2387.1,2386.7,4.1898]
[1728044054969,1.82341344,2386.9,2386.6,1.63063071]
[1728044055214,1.82341344,2386.7,2386.6,0.87563071]
[1728044055421,2.61991344,2386.7,2386.5,0.87563071]
[1728044055588,6.80980344,2386.7,2386.4,0.7514]
[1728044056002,1.82341344,2386.5,2386.2,0.87563071]
[1728044056207,1.82341344,2386.3,2386.2,0.87563071]
[1728044056367,6.01378344,2386.5,2386.1,5.06656071]
[1728044056674,6.01378344,2386.5,2386.1,4.19093]
[1728044056868,6.01378344,2386.5,2386.2,0.2274308]
[1728044057106,7.11381278,2386.5,2386.2,0.2274308]
[1728044058811,6.01376344,2386.5,2386.2,0.2274308]
[1728044059010,4.98649,2386.7,2386.2,0.2274308]
[1728044059195,1.82341344,2386.7,2386.4,0.8199]
[1728044059706,1.82341344,2386.7,2386.5,0.22707656]
[1728044060009,4.18945,2387.0,2386.6,4.18993]
[1728044060517,1.82341344,2386.9,2386.7,0.22692178]
[1728044061107,6.01296344,2386.9,2386.7,0.22692178]
[1728044061312,5.00031,2386.8,2386.7,0.22692178]
[1728044061483,4.19022,2386.6,2386.2,0.789]
[1728044061688,4.1903,2386.5,2386.2,0.789]
[1728044068086,4.97629,2386.5,2386.0,0.7604]
[1728044068320,4.97631,2386.5,2386.0,0.7604]
[1728044068626,4.19063,2386.3,2386.0,0.7604]
[1728044068772,0.786,2386.5,2386.0,0.7604]
[1728044069473,4.19048,2386.4,2386.0,4.95151]
[1728044070615,4.19002,2386.7,2386.3,4.19046]
[1728044070984,4.18975,2386.8,2386.4,4.1904]
[1728044071394,4.18995,2386.7,2386.3,4.19046]
[1728044071698,4.18995,2386.7,2386.4,0.22733831]
[1728044072016,8.14401377,2386.8,2386.4,0.22733831]
[1728044072333,4.19004,2386.7,2386.4,0.22733831]
[1728044073490,4.19008,2386.6,2386.4,0.22733831]
[1728044073830,4.19004,2386.7,2386.3,4.19054]
[1728044074018,4.19004,2386.7,2386.5,0.22722023]
[1728044074185,4.19006,2386.6,2386.2,4.19066]
[1728044074389,4.19006,2386.6,2386.2,8.3813]
[1728044074594,4.19006,2386.6,2386.2,9.29874]
[1728044074789,4.19006,2386.6,2386.2,0.91744]
[1728044075099,4.19006,2386.6,2386.1,4.98399]
[1728044075100,4.94975,2386.5,2386.1,4.98399]
[1728044075788,4.94975,2386.5,2386.1,0.7931]
[1728044076025,4.94975,2386.5,2386.1,4.98403]
[1728044076493,4.19008,2386.6,2386.2,4.19069]
[1728044077419,4.18108,2386.6,2386.2,4.19069]
[1728044078621,3.95427377,2386.8,2386.2,4.19069]
[1728044078622,3.95427377,2386.8,2386.4,0.7969]
[1728044078913,8.14405377,2386.8,2386.4,4.9873]
[1728044079901,8.14405377,2386.8,2386.4,0.7969]
[1728044079902,4.18997,2386.7,2386.4,0.7969]
[1728044080116,8.14405377,2386.8,2386.2,4.19072]
[1728044080117,4.19013,2386.6,2386.2,4.19072]
[1728044081495,8.14408377,2386.8,2386.3,4.19058]
[1728044081496,4.18991,2386.7,2386.3,4.19058]
[1728044083737,6.01461438,2386.7,2386.3,4.19058]
[1728044084139,1.82470438,2386.7,2386.4,5.01237]
[1728044086849,1.82470438,2386.7,2386.5,0.22720127]
[1728044087615,4.18973,2386.8,2386.5,0.22720127]
[1728044087966,1.82470438,2386.7,2386.5,0.22720127]
[1728044091148,6.01467438,2386.7,2386.5,0.22720127]
[1728044091834,1.82470438,2386.7,2386.5,0.22720127]
[1728044099195,4.18975,2386.8,2386.5,0.22720127]
[1728044099347,4.18975,2386.8,2386.5,4.41742127]
[1728044099550,6.67123013,2386.9,2386.5,4.41742127]
[1728044099871,6.01426438,2386.9,2386.5,8.60751127]
[1728044100196,1.82470438,2386.9,2386.6,4.18999]
[1728044100411,0.7545,2387.1,2386.6,4.18999]
[1728044100412,4.94372,2387.1,2386.7,5.17741905]
[1728044100560,1.82470438,2386.8,2386.7,0.22691905]
[1728044100760,6.01441438,2386.8,2386.5,0.87563071]
[1728044100971,6.01441438,2386.8,2386.6,0.22703439]
[1728044100972,6.81761438,2386.8,2386.6,0.22703439]
[1728044101303,6.01460438,2386.7,2386.3,5.82787071]
[1728044101895,6.01460438,2386.7,2386.4,0.22727053]
[1728044102816,0.8326,2387.0,2386.6,4.94952]
[1728044102974,1.82470438,2387.1,2386.8,4.1896]
[1728044103180,1.82470438,2387.1,2386.9,0.22669381]
[1728044103569,1.82470438,2387.1,2386.9,5.18650381]
[1728044103818,4.84594999,2387.2,2386.9,5.18650381]
[1728044103819,0.65690999,2387.2,2387.0,4.18935]
[1728044104077,0.65690999,2387.2,2387.1,4.18918]
[1728044104233,0.65690999,2387.2,2387.1,5.18080044]
[1728044104382,13.32330438,2387.5,2387.1,5.18080044]
[1728044105211,1.82470438,2387.6,2387.3,4.18871]
[1728044105415,1.82470438,2387.6,2387.4,0.8003]
[1728044105612,8.13869452,2387.7,2387.4,1.02620141]
[1728044105790,8.89937452,2387.5,2387.4,0.22590141]
[1728044105984,8.89937452,2387.5,2386.9,1.31344606]
[1728044105985,8.89937452,2387.5,2386.9,5.86542071]
[1728044106235,8.89937452,2387.5,2387.0,0.22632734]
[1728044106236,12.32824452,2387.3,2387.0,0.22632734]
[1728044106431,8.13932452,2387.3,2387.0,0.22632734]
[1728044106932,13.08817452,2387.5,2387.0,4.41563734]
[1728044107115,8.89953452,2387.5,2387.0,5.29126805]
[1728044107924,4.18867,2387.4,2387.0,1.10195805]
[1728044108089,4.18867,2387.4,2387.0,0.22632734]
[1728044108293,4.18867,2387.4,2387.0,4.41563734]
[1728044109930,4.18867,2387.4,2387.0,0.22632734]
[1728044110143,4.18883,2387.3,2387.0,0.22632734]
[1728044110599,4.18908,2387.2,2387.0,0.22632734]
[1728044110799,10.35306841,2387.3,2386.8,0.7777]
[1728044110800,1.41404389,2387.3,2386.8,0.7777]
[1728044111105,4.18884,2387.3,2386.9,4.18946]
[1728044111437,4.18884,2387.3,2386.9,4.41590536]
[1728044112359,4.18876,2387.4,2387.0,4.18934]
[1728044112858,4.18876,2387.4,2387.1,0.22620933]
[1728044113061,8.37752,2387.4,2387.1,0.22620933]
[1728044113223,8.37754,2387.4,2387.1,0.22620933]
[1728044113418,8.13900452,2387.5,2387.2,0.7724]
[1728044113620,4.18851,2387.5,2387.3,0.22589743]
[1728044113825,4.18851,2387.5,2387.2,0.7724]
[1728044114050,4.18866,2387.4,2387.2,0.7724]
[1728044114260,4.18866,2387.4,2387.0,5.01734]
[1728044114434,4.18866,2387.4,2387.0,9.2066]
[1728044114640,4.18866,2387.4,2387.0,5.01726]
[1728044115377,4.18866,2387.4,2387.0,5.01724]
[1728044116944,4.1885,2387.5,2387.2,4.189]
[1728044117143,4.18802,2387.8,2387.4,4.18853]
[1728044117458,4.18813,2387.7,2387.5,0.2256398]
[1728044117661,4.18813,2387.7,2387.3,4.94579]
[1728044117898,4.18832,2387.6,2387.3,0.757]
[1728044118056,4.1885,2387.5,2387.1,4.1891]
[1728044118400,4.1885,2387.5,2387.1,4.9598]
[1728044118572,4.18868,2387.4,2387.1,0.7707]
[1728044118744,8.13901452,2387.5,2387.1,4.95986]
[1728044118944,8.13901452,2387.5,2387.2,4.189]
[1728044119183,3.95049452,2387.5,2387.2,4.189]
[1728044119386,5.01772,2387.6,2387.2,5.145856]
[1728044119990,4.18858,2387.5,2387.2,0.956856]
[1728044120293,5.01772,2387.6,2387.1,0.7707]
[1728044120475,4.189,2387.2,2387.1,0.7707]
[1728044120641,4.18923,2387.1,2386.9,0.8035]
[1728044121354,4.18898,2387.3,2386.9,0.8035]
[1728044121556,4.18904,2387.2,2386.9,0.8035]
[1728044121763,4.18904,2387.2,2386.9,2.063775]
[1728044122759,4.1892,2387.1,2386.9,2.063775]
[1728044123186,4.18904,2387.2,2386.9,2.063775]
[1728044124066,4.1892,2387.1,2386.9,0.8035]
[1728044124257,4.18971,2386.8,2386.7,0.7895]
[1728044125904,4.18956,2386.9,2386.7,0.7895]
[1728044126452,4.19,2386.7,2386.3,5.02003]
[1728044126704,6.01422684,2386.6,2386.3,0.8295]
[1728044126858,4.19006,2386.6,2386.3,0.8295]
[1728044127993,4.1899,2386.7,2386.3,5.02005]
[1728044129757,4.1899,2386.7,2386.4,4.19041]
[1728044129955,4.1899,2386.7,2386.4,5.153426]
[1728044130663,4.18978,2386.8,2386.4,5.153426]
[1728044130875,1.82416684,2387.0,2386.6,5.01328]
[1728044130876,4.18943,2387.0,2386.6,5.01328]
[1728044131860,4.18943,2387.0,2386.7,0.22674378]
[1728044132257,4.18893,2387.3,2386.8,0.8233]
[1728044132517,4.18893,2387.3,2386.9,4.18952]
[1728044132658,12.08196563,2387.5,2387.0,5.932734]
[1728044132659,4.18855,2387.5,2387.0,5.932734]
[1728044132984,4.18855,2387.5,2387.1,4.18905]
[1728044133196,8.96018563,2387.7,2387.2,4.18899]
[1728044133197,4.18831,2387.6,2387.2,4.18899]
[1728044133357,4.18831,2387.6,2387.3,0.8233]
[1728044133563,4.18831,2387.6,2387.3,1.09252744]
[1728044133790,4.18856,2387.5,2387.3,1.09252744]
[1728044140624,4.18865,2387.4,2387.3,1.09252744]
[1728044142722,4.1885,2387.5,2387.3,1.09252744]
[1728044144100,4.18834,2387.6,2387.3,1.09252744]
[1728044145635,8.37675,2387.6,2387.3,1.09252744]
[1728044146414,4.18834,2387.6,2387.3,1.09252744]
[1728044147103,8.37675,2387.6,2387.3,1.09252744]
[1728044147539,4.18834,2387.6,2387.3,1.09252744]
[1728044153589,6.01168922,2387.6,2387.3,1.09252744]
[1728044154317,4.18813,2387.7,2387.3,1.09252744]
[1728044154477,4.18813,2387.7,2387.4,4.18863]
[1728044154864,4.18813,2387.7,2387.5,0.2687792]
[1728044155090,6.01132922,2387.8,2387.5,0.2687792]
[1728044156809,4.18818,2387.7,2387.5,0.2687792]
[1728044157202,4.18818,2387.7,2387.3,9.20088]
[1728044157370,6.01132922,2387.8,2387.6,0.26851313]
[1728044157371,6.01133922,2387.8,2387.6,0.26851313]
[1728044157571,6.01133922,2387.8,2387.4,4.18861]
[1728044157572,7.10843114,2387.8,2387.4,4.18861]
[1728044157803,6.01133922,2387.8,2387.7,0.26839336]
[1728044158004,6.01133922,2387.8,2387.4,4.18861]
[1728044158211,6.01133922,2387.8,2387.7,0.26839336]
[1728044158709,6.01133922,2387.8,2387.4,4.18861]
[1728044159009,6.01133922,2387.8,2387.7,0.26839336]
[1728044159184,6.01133922,2387.8,2387.4,4.18861]
[1728044159384,6.01133922,2387.8,2387.7,0.26840691]
[1728044159607,6.01133922,2387.8,2387.4,4.18861]
[1728044159809,6.01133922,2387.8,2387.7,0.26840691]
[1728044160111,1.82334922,2387.8,2387.7,0.26840691]
[1728044160316,1.82334922,2387.8,2387.6,4.18829]
[1728044160471,1.82334922,2387.8,2387.7,0.26840691]
[1728044161172,5.01828,2388.1,2387.7,0.26840691]
[1728044161173,0.8307,2388.1,2387.7,0.26840691]
[1728044161517,4.18734,2388.2,2387.9,4.94487]
[1728044161812,6.77386922,2388.3,2387.9,0.7571]
[1728044161973,6.77386922,2388.3,2388.0,0.26797996]
[1728044162304,6.77386922,2388.3,2388.0,4.45555996]
[1728044163431,6.01046922,2388.3,2388.0,4.45555996]
[1728044163607,1.82334922,2388.3,2388.0,4.45555996]
[1728044164272,1.82334922,2388.3,2388.0,5.39559396]
[1728044164518,1.82334922,2388.3,2388.1,4.18741]
[1728044164698,2.57714922,2388.5,2388.1,4.18741]
[1728044164899,2.57714922,2388.5,2388.2,4.45469884]
[1728044165075,1.82334922,2388.5,2388.2,5.28799884]
[1728044165423,4.18665,2388.6,2388.2,5.28799884]
[1728044165711,1.82334922,2388.5,2388.2,5.28799884]
[1728044165875,0.8125,2388.7,2388.2,6.29137127]
[1728044166198,2.63584922,2388.7,2388.3,4.18699]
[1728044166578,1.82334922,2388.7,2388.4,4.45394716]
[1728044167823,1.82334922,2388.7,2388.5,4.1867]
[1728044168033,1.82334922,2388.7,2388.6,0.26686449]
[1728044169105,6.00971922,2388.7,2388.6,0.26686449]
[1728044169302,6.78701922,2388.7,2388.6,0.26686449]
[1728044169519,6.78701922,2388.7,2388.0,0.7616]
[1728044169520,4.18716,2388.3,2388.0,0.7616]
[1728044169811,1.82334922,2388.2,2388.0,0.7616]
[1728044170141,1.82334922,2388.2,2388.1,0.26743048]
[1728044170899,1.82334922,2388.4,2388.1,4.45482048]
[1728044171301,6.00992922,2388.6,2388.2,0.55]
[1728044171561,6.00992922,2388.6,2388.3,0.7939]
[1728044171562,4.18658,2388.6,2388.3,0.7939]
[1728044171833,4.18658,2388.6,2388.3,1.06109106]
[1728044174518,4.18689,2388.5,2388.3,0.26719106]
[1728044174717,4.1869,2388.4,2388.3,0.26719106]
[1728044174910,4.1869,2388.4,2388.0,0.8206]
[1728044175111,4.1869,2388.4,2388.3,0.26716129]
[1728044175415,4.18709,2388.3,2388.0,0.8206]
[1728044175606,4.18739,2388.2,2387.8,0.7871]
[1728044175927,3.94702018,2388.4,2387.9,4.18764]
[1728044175928,4.18714,2388.3,2387.9,4.18764]
[1728044176825,4.18714,2388.3,2388.0,0.26752043]
[1728044177542,4.18705,2388.4,2388.0,4.45512043]
[1728044177724,8.37409,2388.4,2388.1,0.8168]
[1728044177923,4.18683,2388.5,2388.1,5.00421]
[1728044178123,4.18683,2388.5,2388.2,0.26728099]
[1728044178371,4.1864,2388.7,2388.3,5.00387]
[1728044178647,4.18637,2388.8,2388.4,4.18683]
[1728044178813,4.18637,2388.8,2388.4,0.2670822]
[1728044178814,4.18657,2388.6,2388.4,0.2670822]
[1728044179209,4.18672,2388.5,2388.4,0.2670822]
[1728044179412,5.01582,2388.5,2387.9,0.8317]
[1728044179647,5.01582,2388.5,2387.7,7.18796]
[1728044179648,4.1877,2388.0,2387.7,3.8317]
[1728044179825,4.1877,2388.0,2387.7,0.8317]
[1728044180349,4.18745,2388.1,2387.7,5.01975]
[1728044183776,4.18763,2388.0,2387.7,0.8317]
[1728044184068,4.18745,2388.1,2387.7,5.521674]
[1728044186374,4.18728,2388.2,2387.8,4.18792]
[1728044186674,4.18728,2388.2,2387.7,1.333694]
[1728044186878,4.18744,2388.1,2387.7,5.521784]
[1728044187182,4.18744,2388.1,2387.7,9.709844]
[1728044188576,3.94702018,2388.3,2387.8,5.1589144]
[1728044188577,4.18732,2388.2,2387.8,5.1589144]
[1728044188741,4.18743,2388.1,2387.8,4.18793]
[1728044190947,4.18762,2388.0,2387.7,0.8317]
[1728044191145,4.99232,2388.0,2387.7,0.8317]
[1728044191645,0.8047,2388.0,2387.8,0.26781136]
[1728044191844,0.8047,2388.0,2387.7,5.01981]
[1728044192083,0.8047,2388.0,2387.8,0.26781136]
[1728044192258,0.8047,2388.0,2387.7,5.01981]
[1728044192445,0.8047,2388.0,2387.8,0.26781136]
[1728044193102,0.8047,2388.0,2387.7,4.18812]
[1728044193696,1.82257581,2388.1,2387.8,4.18788]
[1728044194189,6.01002581,2388.1,2387.7,5.108648]
[1728044194352,1.82257581,2388.1,2387.8,4.18792]
[1728044195652,4.18771,2388.0,2387.6,4.18829]
[1728044195857,6.79002581,2387.9,2387.5,5.01745]
[1728044196051,6.79002581,2387.9,2387.5,5.98003]
[1728044197370,2.60217581,2387.9,2387.5,5.98003]
[1728044197696,2.60217581,2387.9,2387.6,4.1883]
[1728044198302,6.76680581,2388.1,2387.7,4.1881]
[1728044198514,10.95431581,2388.1,2387.8,0.83764]
[1728044198801,10.95431581,2388.1,2387.7,4.1881]
[1728044199211,4.18761,2388.0,2387.6,4.1883]
[1728044199499,4.18785,2387.9,2387.6,4.1883]
[1728044200058,4.18785,2387.9,2387.5,5.97989]
[1728044200290,4.18785,2387.9,2387.6,1.058824]
[1728044200490,6.76697581,2388.1,2387.6,5.247114]
[1728044200491,4.18768,2388.0,2387.6,5.247114]
[1728044201863,4.1878,2387.9,2387.6,5.247114]
[1728044202174,4.1878,2387.9,2387.6,1.058824]
[1728044202391,4.18795,2387.8,2387.5,0.829]
[1728044204610,4.18814,2387.7,2387.5,0.829]
[1728044204969,4.18795,2387.8,2387.5,0.829]
[1728044206608,8.37605,2387.8,2387.5,0.829]
[1728044206926,8.37605,2387.8,2387.6,0.26761561]
[1728044207084,4.18795,2387.8,2387.6,0.26761561]
[1728044207289,4.18813,2387.7,2387.6,0.26761561]
[1728044207484,5.01023,2387.7,2387.6,0.26761561]
[1728044207728,5.01023,2387.7,2387.3,3.8174]
[1728044207900,4.18835,2387.6,2387.4,0.93016107]
[1728044208235,4.18848,2387.5,2387.3,0.8174]
[1728044208588,1.82257581,2387.7,2387.3,0.8174]
[1728044208790,6.01079581,2387.7,2387.3,0.8174]
[1728044209003,4.18831,2387.6,2387.3,0.8174]
[1728044209232,4.18831,2387.6,2387.3,1.44756107]
[1728044209736,4.18831,2387.6,2387.3,0.63016107]
[1728044211235,1.82257581,2387.7,2387.3,0.63016107]
[1728044211526,6.01073581,2387.7,2387.3,4.81899107]
[1728044211929,10.19903581,2387.7,2387.3,4.81899107]
[1728044212219,6.01073581,2387.7,2387.3,4.81899107]
[1728044214209,6.01073581,2387.7,2387.3,9.00775107]
[1728044214609,6.01073581,2387.7,2387.3,4.81892107]
[1728044215834,6.01073581,2387.7,2387.4,0.8052]
[1728044216538,4.18809,2387.8,2387.4,6.01711211]
[1728044216744,4.18815,2387.7,2387.4,1.82848211]
[1728044217737,4.18815,2387.7,2387.4,6.01713211]
[1728044218741,4.18803,2387.8,2387.4,6.01713211]
[1728044219036,4.18795,2387.8,2387.5,4.18846]
[1728044219255,0.8266,2388.2,2387.7,0.7751]
[1728044219406,4.18733,2388.2,2387.9,4.18776]
[1728044219611,4.18711,2388.3,2387.9,4.18776]
[1728044219823,4.18711,2388.3,2388.0,0.7751]
[1728044220024,2.64917581,2388.4,2388.0,4.96268]
[1728044220203,6.77250581,2388.6,2388.2,4.18725]
[1728044220642,6.77250581,2388.6,2388.1,0.55]
[1728044220643,4.18691,2388.4,2388.1,0.55]
[1728044220961,4.18675,2388.5,2388.1,4.73741]
[1728044221112,6.00948581,2388.4,2388.1,0.55]
[1728044221320,6.00948581,2388.4,2388.0,5.458888]
[1728044221516,4.18691,2388.4,2388.0,5.458868]
[1728044221831,4.94988,2388.6,2388.1,4.45423898]
[1728044222021,4.18634,2388.8,2388.3,4.18705]
[1728044222022,4.18638,2388.7,2388.3,4.18705]
[1728044222331,4.97474,2388.8,2388.4,4.45341407]
[1728044222509,4.18634,2388.8,2388.4,4.45341407]
[1728044222905,8.37267,2388.8,2388.4,4.45341407]
[1728044223353,4.18633,2388.8,2388.4,0.26654407]
[1728044223514,4.18638,2388.7,2388.4,0.26654407]
[1728044223711,4.18633,2388.8,2388.4,5.13250141]
[1728044223916,4.18606,2388.9,2388.5,5.27294438]
[1728044224228,4.18606,2388.9,2388.5,1.08622438]
[1728044224438,4.18645,2388.7,2388.5,1.08622438]
[1728044224810,4.18645,2388.7,2388.5,0.26642438]
[1728044225343,8.92952512,2388.6,2388.5,0.26642438]
[1728044225727,8.92952512,2388.6,2388.2,4.18722]
[1728044225933,8.92952512,2388.6,2388.5,0.26598662]
[1728044226110,8.92952512,2388.6,2388.2,8.37438]
[1728044226308,8.92952512,2388.6,2388.5,0.26600286]
[1728044226509,8.92952512,2388.6,2388.2,8.37438]
[1728044226714,8.92952512,2388.6,2388.3,0.26624224]
[1728044227123,8.92952512,2388.6,2388.2,4.18716]
[1728044227326,8.92952512,2388.6,2388.4,0.26612255]
[1728044227643,13.11621512,2388.6,2388.3,0.26624224]
[1728044227845,8.92952512,2388.6,2388.5,0.26600286]
[1728044228070,4.18672,2388.5,2388.4,0.26612255]
[1728044228259,8.37353,2388.5,2388.1,5.00319]
[1728044228463,4.18672,2388.5,2388.1,5.00319]
[1728044229221,8.37356,2388.5,2388.1,5.00319]
[1728044229724,4.18691,2388.4,2388.1,0.8158]
[1728044231458,4.18691,2388.4,2388.1,1.358098]
[1728044232873,8.92955512,2388.6,2388.1,5.545498]
[1728044232874,4.1868,2388.5,2388.1,5.545498]
[1728044235878,4.18658,2388.6,2388.2,4.18719]
[1728044236249,4.18658,2388.6,2388.2,8.37437]
[1728044236454,4.18658,2388.6,2388.2,9.3476168]
[1728044236760,4.18658,2388.6,2388.3,0.26633967]
[1728044237168,4.18658,2388.6,2388.2,9.3476168]
[1728044237370,4.18658,2388.6,2388.4,0.26621997]
[1728044237555,4.18658,2388.6,2388.2,9.3476168]
[1728044237757,4.18658,2388.6,2388.5,0.26610029]
[1728044237944,4.18658,2388.6,2388.2,9.3476168]
[1728044238144,4.18658,2388.6,2388.5,0.26610029]
[1728044238443,4.18658,2388.6,2388.2,9.3476168]
[1728044238639,4.18658,2388.6,2388.5,0.26610029]
[1728044238859,4.18658,2388.6,2388.2,8.37437]
[1728044239065,4.18658,2388.6,2388.5,0.26610029]
[1728044239268,4.18658,2388.6,2388.2,8.37437]
[1728044239747,4.18658,2388.6,2388.3,0.26633967]
[1728044240280,4.18658,2388.6,2388.2,4.18718]
[1728044240586,4.18658,2388.6,2388.3,0.26633155]
[1728044241044,4.18674,2388.5,2388.2,4.18718]
[1728044241245,8.37323,2388.6,2388.4,0.26621185]
[1728044241595,8.37323,2388.6,2387.9,0.4197]
[1728044241596,4.18702,2388.4,2387.9,5.41869]
[1728044241901,4.18708,2388.3,2388.0,4.18759]
[1728044242889,4.18702,2388.4,2388.0,4.18759]
[1728044243042,4.18701,2388.4,2387.9,1.231]
[1728044243248,4.18716,2388.3,2387.9,9.260615]
[1728044243774,6.00905153,2388.4,2388.0,4.18758]
[1728044245063,4.18667,2388.6,2388.0,4.18758]
[1728044245064,6.00879153,2388.6,2388.1,0.8181]
[1728044245273,4.18677,2388.5,2388.1,5.00544]
[1728044245589,4.18677,2388.5,2388.1,6.3509015]
[1728044245897,4.18677,2388.5,2388.1,10.5381915]
[1728044246446,4.18692,2388.4,2388.1,2.1635615]
[1728044246761,6.83908153,2388.4,2388.0,4.18756]
[1728044247602,6.83908153,2388.4,2388.0,8.37505]
[1728044247972,6.00918153,2388.4,2388.0,8.37505]
[1728044248186,6.00918153,2388.4,2388.1,4.18741]
[1728044248490,6.81705153,2388.6,2388.2,5.01444]
[1728044248706,6.00875153,2388.6,2388.2,5.01444]
[1728044249375,0.7835,2389.0,2388.7,4.18631]
[1728044249631,4.84214036,2389.1,2388.8,0.418631]
[1728044249808,4.84214036,2389.1,2388.7,4.18628]
[1728044249809,4.18574,2389.1,2388.7,4.18628]
[1728044250129,2.60562153,2389.2,2388.8,4.18612]
[1728044250130,6.79114153,2389.2,2388.8,4.18612]
[1728044250423,2.60562153,2389.2,2388.9,4.18601]
[1728044250980,2.60562153,2389.2,2388.8,4.18609]
[1728044251279,6.79112153,2389.2,2388.8,4.18618]
[1728044251589,2.60562153,2389.2,2388.9,4.18601]
[1728044251788,2.60562153,2389.2,2388.9,4.45153693]
[1728044251997,2.60562153,2389.2,2388.9,0.26552693]
[1728044252195,2.60562153,2389.2,2388.8,4.18619]
[1728044252395,2.60562153,2389.2,2389.0,0.26540729]
[1728044252596,6.79112153,2389.2,2388.8,4.18619]
[1728044252796,6.79112153,2389.2,2389.1,0.26528767]
[1728044253089,6.79112153,2389.2,2388.6,0.8272]
[1728044253090,4.18587,2389.0,2388.6,0.8272]
[1728044253297,1.82212153,2388.8,2388.5,4.18661]
[1728044253705,3.9467848,2388.9,2388.5,4.18661]
[1728044253909,8.1328248,2388.9,2388.5,4.18661]
[1728044254282,4.18587,2389.0,2388.6,4.18654]
[1728044257404,8.1326048,2389.1,2388.6,4.18653]
[1728044257604,4.18585,2389.0,2388.4,5.43036]
[1728044257811,4.95184,2388.8,2388.4,5.01066]
[1728044258036,4.95184,2388.8,2388.4,9.19747]
[1728044258545,4.95184,2388.8,2388.5,4.18672]
[1728044258706,0.7656,2388.8,2388.5,4.18672]
[1728044259845,4.9518,2388.8,2388.5,4.18672]
[1728044260206,4.9518,2388.8,2388.4,5.01077]
[1728044260426,0.7656,2388.8,2388.5,4.18666]
[1728044263169,0.7656,2388.8,2388.4,5.01071]
[1728044263380,4.95181,2388.8,2388.4,5.01071]
[1728044263777,4.95181,2388.8,2388.4,9.19753]
[1728044264196,0.7656,2388.8,2388.4,5.01071]
[1728044264372,4.9518,2388.8,2388.4,9.19751]
[1728044265052,4.9518,2388.8,2388.4,5.0107]
[1728044265408,4.18639,2388.7,2388.2,5.06273071]
[1728044265554,4.18639,2388.7,2388.3,4.187]
[1728044267107,4.18639,2388.7,2388.4,0.26592772]
[1728044267912,5.84181848,2388.8,2388.4,4.45281772]
[1728044269299,4.95196,2388.8,2388.4,4.45281772]
[1728044269891,0.7656,2388.8,2388.5,4.18672]
[1728044270402,0.7656,2388.8,2388.6,0.26575873]
[1728044270907,5.01274,2389.0,2388.6,4.45222873]
[1728044271275,9.19873,2389.0,2388.6,4.45222873]
[1728044271489,5.01274,2389.0,2388.6,4.45222873]
[1728044271667,9.19867,2389.0,2388.6,4.45222873]
[1728044271865,5.01273,2389.0,2388.6,4.45222873]
[1728044272104,5.01272,2389.0,2388.6,4.45221873]
[1728044273699,6.83392228,2389.0,2388.6,4.45221873]
[1728044274212,4.18603,2388.9,2388.6,0.26575873]
[1728044274705,7.93588551,2389.0,2388.6,0.26575873]
[1728044274706,6.00753228,2388.8,2388.6,0.26575873]
[1728044274916,0.7915,2388.7,2388.6,0.26575873]
[1728044275068,0.7915,2388.7,2388.4,4.18683]
[1728044275266,0.7915,2388.7,2388.6,0.26575873]
[1728044275469,0.7915,2388.7,2388.4,4.18683]
[1728044275918,0.7915,2388.7,2388.5,0.2658784]
[1728044276571,4.18606,2388.9,2388.5,4.4525784]
[1728044276807,9.19341,2388.9,2388.5,4.4525784]
[1728044277049,10.40506755,2388.9,2388.5,4.4525784]
[1728044278610,5.00726,2388.9,2388.5,4.4525784]
[1728044280717,4.18627,2388.8,2388.5,0.2658784]
[1728044280944,6.00747228,2388.8,2388.5,0.2658784]
[1728044281246,4.18639,2388.7,2388.5,0.2658784]
[1728044281616,5.00731,2388.9,2388.3,1.2328]
[1728044281940,5.00727,2388.9,2388.6,0.26575873]
[1728044282098,5.00727,2388.9,2388.5,4.18671]
[1728044282298,5.00727,2388.9,2388.7,0.26563906]
[1728044282503,5.00727,2388.9,2388.6,0.26575873]
[1728044282747,5.00727,2388.9,2388.8,0.26551941]
[1728044282907,6.75758228,2389.0,2388.7,0.26563906]
[1728044283106,4.18612,2388.9,2388.8,0.26551941]
[1728044283632,4.18612,2388.9,2388.8,0.26548421]
[1728044283841,4.18612,2388.9,2388.5,4.18668]
[1728044284005,4.18612,2388.9,2388.8,0.26548421]
[1728044284208,4.18612,2388.9,2388.5,4.18668]
[1728044284437,4.18612,2388.9,2388.8,0.26548421]
[1728044284603,4.18612,2388.9,2388.5,4.18668]
[1728044284799,4.18612,2388.9,2388.8,0.26548421]
[1728044285034,4.18612,2388.9,2388.5,4.18668]
[1728044285240,4.18612,2388.9,2388.8,0.26548421]
[1728044285445,4.18612,2388.9,2388.5,4.18668]
[1728044285609,4.18612,2388.9,2388.8,0.26548421]
[1728044285809,4.18612,2388.9,2388.5,4.18668]
[1728044286020,4.18612,2388.9,2388.8,0.26548421]
[1728044286345,4.18612,2388.9,2388.5,4.18668]
[1728044286508,4.18612,2388.9,2388.8,0.26548421]
[1728044286846,6.75758228,2389.0,2388.8,0.26548421]
[1728044287052,6.75758228,2389.0,2388.6,4.18654]
[1728044287214,4.18606,2388.9,2388.5,4.18668]
[1728044289041,6.00741228,2388.8,2388.4,4.18687]
[1728044289242,5.011,2389.1,2388.7,4.18634]
[1728044289452,5.011,2389.1,2388.7,8.3726]
[1728044290250,5.011,2389.1,2388.7,4.18626]
[1728044290914,6.00705228,2389.0,2388.6,4.18648]
[1728044291114,4.18604,2388.9,2388.5,5.38365]
[1728044291425,4.18645,2388.7,2388.3,5.88822071]
[1728044291607,4.18655,2388.6,2388.3,0.8256]
[1728044292118,4.18645,2388.7,2388.3,5.01267]
[1728044292543,4.18645,2388.7,2388.4,0.44445469]
[1728044292741,4.18645,2388.7,2388.3,5.01267]
[1728044292953,4.18645,2388.7,2388.4,0.44445844]
[1728044293177,4.18645,2388.7,2388.4,4.18689]
[1728044293670,4.18645,2388.7,2388.3,0.8256]
[1728044293854,0.7779,2388.8,2388.5,4.18671]
[1728044294056,4.18609,2388.9,2388.5,4.18671]